bitfinex/quotes_BTCUSD_20240906
["timestamp","ask_amount","ask_price","bid_price","bid_amount"]
[1725621953902,1.9337334,56152.0,56151.0,0.004634]
[1725621954149,1.95041462,56152.0,56151.0,0.004634]
[1725621954369,1.95041462,56152.0,56151.0,0.001634]
[1725621954585,1.95441462,56152.0,56151.0,0.001634]
[1725621954801,1.95741462,56152.0,56151.0,0.001634]
[1725621956366,2.01111947,56152.0,56151.0,0.001634]
[1725621957286,2.01111895,56152.0,56151.0,0.001634]
[1725621958488,2.11749651,56152.0,56151.0,0.001634]
[1725621958711,2.11749684,56152.0,56151.0,0.001634]
[1725621959189,2.01111895,56152.0,56151.0,0.001634]
[1725621959923,2.11750246,56152.0,56151.0,0.001634]
[1725621960413,2.10082176,56152.0,56151.0,0.001634]
[1725621960683,1.76132773,56152.0,56151.0,0.001634]
[1725621960931,1.68102635,56152.0,56151.0,0.001634]
[1725621961367,1.68102784,56152.0,56151.0,0.001634]
[1725621961574,1.60123937,56152.0,56151.0,0.001634]
[1725621962459,1.37090062,56152.0,56151.0,0.001634]
[1725621962676,0.91472462,56152.0,56151.0,0.001634]
[1725621962896,0.55876297,56152.0,56151.0,0.001634]
[1725621963160,0.91493897,56152.0,56151.0,0.001634]
[1725621963397,0.91493897,56152.0,56151.0,0.04441726]
[1725621963605,0.91093897,56152.0,56151.0,0.001634]
[1725621963829,0.91093897,56152.0,56151.0,0.002634]
[1725621964298,0.91093897,56152.0,56151.0,0.04541726]
[1725621964510,0.91093897,56152.0,56151.0,0.002634]
[1725621964943,0.90793897,56152.0,56151.0,0.04541726]
[1725621965165,0.90793897,56152.0,56151.0,0.002634]
[1725621965382,0.90793897,56152.0,56151.0,0.04741726]
[1725621965603,0.90793897,56152.0,56151.0,0.004634]
[1725621965837,0.55176297,56152.0,56151.0,0.004634]
[1725621966262,0.19558697,56152.0,56151.0,0.14881726]
[1725621966481,0.01750199,56152.0,56151.0,0.004634]
[1725621966807,1.26411799,56152.0,56151.0,0.04741726]
[1725621967007,1.26411799,56152.0,56151.0,0.004634]
[1725621967217,1.31732011,56152.0,56151.0,0.004634]
[1725621967428,1.26411799,56152.0,56151.0,0.004634]
[1725621968059,1.27628208,56152.0,56151.0,0.004634]
[1725621968269,1.35608526,56152.0,56151.0,0.004634]
[1725621968479,1.3561874,56152.0,56151.0,0.004634]
[1725621969332,1.26411799,56152.0,56151.0,0.004634]
[1725621969745,1.34402746,56152.0,56151.0,0.004634]
[1725621969969,1.32652393,56152.0,56151.0,0.004634]
[1725621970388,1.246616,56152.0,56151.0,0.004634]
[1725621971732,1.32652136,56152.0,56151.0,0.004634]
[1725621971941,1.32652189,56152.0,56151.0,0.004634]
[1725621972169,1.32652226,56152.0,56151.0,0.004634]
[1725621972595,1.246616,56152.0,56151.0,0.004634]
[1725621973300,1.35315643,56152.0,56151.0,0.004634]
[1725621973520,1.246616,56152.0,56151.0,0.004634]
[1725621973945,1.35315643,56152.0,56151.0,0.004634]
[1725621974388,1.246616,56152.0,56151.0,0.004634]
[1725621974647,1.247432,56152.0,56151.0,0.004634]
[1725621978750,1.3539493,56152.0,56151.0,0.004634]
[1725621978966,1.247432,56152.0,56151.0,0.004634]
[1725621979177,1.3539493,56152.0,56151.0,0.004634]
[1725621980096,1.38057863,56152.0,56151.0,0.004634]
[1725621980547,1.38057863,56152.0,56151.0,0.00370275]
[1725621981070,1.38057863,56152.0,56143.0,0.00164]
[1725621981071,1.603017,56144.0,56143.0,0.00164]
[1725621981325,1.89931026,56144.0,56143.0,0.00164]
[1725621981572,2.55306243,56144.0,56143.0,0.00164]
[1725621982052,2.39331524,56144.0,56143.0,0.00164]
[1725621982310,2.39431524,56144.0,56143.0,0.00264]
[1725621982551,2.65854493,56144.0,56143.0,0.00264]
[1725621982774,2.65754493,56144.0,56143.0,0.00164]
[1725621983067,2.55294493,56144.0,56143.0,0.00164]
[1725621983319,2.02835575,56144.0,56143.0,0.00164]
[1725621984013,2.04005948,56144.0,56143.0,0.00164]
[1725621986663,2.01083378,56144.0,56143.0,0.00164]
[1725621986926,1.95705948,56144.0,56143.0,0.00164]
[1725621988679,0.29644848,56144.0,56143.0,0.08734]
[1725621988909,0.190113,56144.0,56143.0,0.08734]
[1725621989169,0.190113,56144.0,56143.0,0.13037283]
[1725621989420,0.546339,56144.0,56143.0,0.13037283]
[1725621989655,0.178113,56144.0,56143.0,0.24207283]
[1725621989936,0.185113,56144.0,56143.0,0.19904]
[1725621990185,0.185113,56144.0,56143.0,0.24207283]
[1725621991305,0.178113,56144.0,56143.0,0.24207283]
[1725621991561,0.179113,56144.0,56143.0,0.24307283]
[1725621991771,0.001,56144.0,56143.0,0.24307283]
[1725621991992,0.178112,56145.0,56143.0,0.24207283]
[1725621992218,1.48068298,56144.0,56143.0,0.15637283]
[1725621992482,1.53485538,56144.0,56143.0,0.04667283]
[1725621992738,1.5614385,56144.0,56143.0,0.00364]
[1725621993000,1.58068298,56144.0,56143.0,0.00164]
[1725621993226,1.57712975,56144.0,56143.0,0.00364]
[1725621994618,1.57712975,56144.0,56143.0,0.00164]
[1725621995570,1.57812975,56144.0,56143.0,0.00264]
[1725621997008,1.704017,56144.0,56143.0,0.00264]
[1725621997232,1.93435575,56144.0,56143.0,0.00264]
[1725621997455,1.57812975,56144.0,56143.0,0.00264]
[1725621997938,1.93435575,56144.0,56143.0,0.00264]
[1725621998185,1.57812975,56144.0,56143.0,0.00264]
[1725621998915,1.57712975,56144.0,56143.0,0.00164]
[1725621999152,1.58312975,56144.0,56143.0,0.00164]
[1725621999847,1.93935575,56144.0,56143.0,0.00164]
[1725622004942,1.71604287,56144.0,56143.0,0.00164]
[1725622005194,1.71604192,56144.0,56143.0,0.00164]
[1725622005424,1.48570317,56144.0,56143.0,0.00164]
[1725622005692,1.71604192,56144.0,56143.0,0.00164]
[1725622005929,1.68946755,56144.0,56143.0,0.00164]
[1725622006156,1.71604192,56144.0,56143.0,0.00164]
[1725622007545,2.07226792,56144.0,56143.0,0.00164]
[1725622007788,1.71604203,56144.0,56143.0,0.00164]
[1725622008279,2.07226803,56144.0,56143.0,0.00164]
[1725622008536,1.71604203,56144.0,56143.0,0.00164]
[1725622008793,1.58312975,56144.0,56143.0,0.00164]
[1725622009287,1.93935575,56144.0,56143.0,0.00164]
[1725622011457,1.99318229,56144.0,56143.0,0.00164]
[1725622019322,1.45884329,56144.0,56143.0,0.00164]
[1725622019601,1.58312975,56144.0,56143.0,0.00164]
[1725622020055,1.93935575,56144.0,56143.0,0.00164]
[1725622022450,1.58312975,56144.0,56143.0,0.00164]
[1725622022678,1.352791,56144.0,56143.0,0.19844]
[1725622022901,0.184113,56144.0,56143.0,0.19844]
[1725622023132,0.006,56144.0,56143.0,0.19844]
[1725622023371,0.006,56144.0,56143.0,0.24189544]
[1725622024000,0.356216,56146.0,56143.0,0.24189544]
[1725622024001,0.534323,56146.0,56143.0,0.13019544]
[1725622024218,0.005,56144.0,56143.0,0.04509544]
[1725622024683,0.178108,56146.0,56143.0,0.04509544]
[1725622024916,0.41025179,56148.0,56145.0,0.1108]
[1725622025111,0.178107,56146.0,56145.0,0.1108]
[1725622025530,0.534321,56146.0,56145.0,0.1108]
[1725622026373,0.178107,56146.0,56145.0,0.1108]
[1725622027286,1.25030223,56146.0,56145.0,0.1128]
[1725622027529,1.45675838,56146.0,56145.0,0.002]
[1725622027737,1.246791,56144.0,56143.0,0.00164]
[1725622027939,1.47712975,56144.0,56143.0,0.00164]
[1725622029534,1.61019095,56144.0,56143.0,0.00164]
[1725622029978,1.61019095,56144.0,56143.0,0.00364]
[1725622029979,1.61119095,56144.0,56143.0,0.00364]
[1725622030397,1.5846335,56144.0,56143.0,0.00364]
[1725622031260,1.47812975,56144.0,56143.0,0.00364]
[1725622031932,1.61128069,56144.0,56143.0,0.00364]
[1725622032144,1.61128212,56144.0,56143.0,0.00364]
[1725622032366,1.47812975,56144.0,56143.0,0.00364]
[1725622032583,1.61128234,56144.0,56143.0,0.00364]
[1725622032828,1.47812975,56144.0,56143.0,0.00364]
[1725622033520,1.61128234,56144.0,56143.0,0.00364]
[1725622033763,1.47812975,56144.0,56143.0,0.00364]
[1725622035818,1.61132898,56144.0,56143.0,0.00364]
[1725622036262,0.97148842,56144.0,56143.0,0.00364]
[1725622036577,0.94484264,56144.0,56143.0,0.00364]
[1725622036801,0.891565,56144.0,56143.0,0.00364]
[1725622037241,0.99812956,56144.0,56143.0,0.00364]
[1725622037469,0.891565,56144.0,56143.0,0.00364]
[1725622037677,0.99812361,56144.0,56143.0,0.00364]
[1725622038359,0.891565,56144.0,56143.0,0.00364]
[1725622039429,0.99814078,56144.0,56143.0,0.00364]
[1725622041819,0.891565,56144.0,56143.0,0.00364]
[1725622042055,1.12190375,56144.0,56143.0,0.00364]
[1725622042293,1.47812975,56144.0,56143.0,0.00364]
[1725622042803,1.47791538,56144.0,56143.0,0.00364]
[1725622043277,1.93414138,56144.0,56143.0,0.00364]
[1725622043983,2.6466009,56144.0,56143.0,0.00364]
[1725622045205,2.6456009,56144.0,56143.0,0.00164]
[1725622045889,2.6464169,56144.0,56143.0,0.00164]
[1725622047604,2.64644041,56144.0,56143.0,0.00164]
[1725622051660,2.14753867,56144.0,56143.0,0.00164]
[1725622051891,1.93395738,56144.0,56143.0,0.00164]
[1725622052831,1.57773138,56144.0,56143.0,0.00164]
[1725622054638,1.63151661,56144.0,56143.0,0.00164]
[1725622054891,1.57773138,56144.0,56143.0,0.00164]
[1725622055134,1.39983275,56144.0,56143.0,0.00164]
[1725622055588,1.57794575,56144.0,56143.0,0.00164]
[1725622056059,1.7111141,56144.0,56143.0,0.00164]
[1725622057704,1.71111091,56144.0,56143.0,0.00164]
[1725622059354,1.57794575,56144.0,56143.0,0.00164]
[1725622059650,1.71113469,56144.0,56143.0,0.00164]
[1725622059902,1.65924575,56144.0,56143.0,0.00164]
[1725622060149,2.01547175,56144.0,56143.0,0.00164]
[1725622060639,2.12467175,56144.0,56143.0,0.00164]
[1725622062479,2.1784981,56144.0,56143.0,0.00164]
[1725622062717,1.347607,56144.0,56143.0,0.08684]
[1725622062976,1.57794575,56144.0,56143.0,0.08684]
[1725622063939,1.57794575,56144.0,56143.0,0.00164]
[1725622065807,1.63173541,56144.0,56143.0,0.00164]
[1725622066282,1.40139666,56144.0,56143.0,0.00164]
[1725622066510,1.57794575,56144.0,56143.0,0.00164]
[1725622069014,1.40138002,56144.0,56143.0,0.00164]
[1725622070135,1.347607,56144.0,56143.0,0.00164]
[1725622075699,1.347607,56144.0,56134.0,0.178144]
[1725622075700,0.188246,56102.0,56101.0,0.071411]
[1725622075912,0.544739,56102.0,56101.0,0.071411]
[1725622076162,0.01,56102.0,56101.0,0.071411]
[1725622076374,0.544739,56102.0,56101.0,0.071411]
[1725622076589,0.901232,56102.0,56101.0,0.071411]
[1725622076808,0.178269,56095.0,56094.0,0.11404]
[1725622077249,0.534807,56095.0,56094.0,0.11404]
[1725622077460,0.178269,56095.0,56094.0,0.11404]
[1725622079241,0.534807,56095.0,56094.0,0.11404]
[1725622079764,0.31973134,56095.0,56094.0,0.11404]
[1725622079982,0.178269,56095.0,56094.0,0.11404]
[1725622080858,0.178264,56097.0,56094.0,0.11404]
[1725622081093,0.366517,56099.0,56094.0,0.11404]
[1725622081094,0.188256,56099.0,56095.0,0.00356506]
[1725622081321,0.178263,56097.0,56095.0,0.04365574]
[1725622081985,0.01,56099.0,56095.0,0.04365574]
[1725622082222,0.01,56101.0,56097.0,0.0887]
[1725622082434,0.01,56101.0,56098.0,0.11106455]
[1725622082649,0.01,56101.0,56098.0,0.15114321]
[1725622082868,0.178231,56107.0,56102.0,0.178245]
[1725622083108,0.178227,56108.0,56103.0,0.1075]
[1725622083321,0.178232,56107.0,56103.0,0.15112233]
[1725622083535,0.01,56104.0,56103.0,0.32936533]
[1725622083751,0.01,56104.0,56103.0,0.15112233]
[1725622084175,0.188231,56107.0,56103.0,0.15112233]
[1725622084402,0.01,56104.0,56103.0,0.15112233]
[1725622084866,0.01,56105.0,56103.0,0.15112233]
[1725622085085,0.01,56105.0,56103.0,0.32936533]
[1725622085304,0.01,56105.0,56104.0,0.17824]
[1725622085531,0.001,56107.0,56104.0,0.22185816]
[1725622085781,0.001,56107.0,56106.0,0.178234]
[1725622085989,0.01,56109.0,56106.0,0.463868]
[1725622086252,0.01,56109.0,56107.0,0.18179104]
[1725622086467,0.01,56109.0,56108.0,0.178227]
[1725622086687,0.01,56109.0,56108.0,0.22182846]
[1725622088212,0.01,56111.0,56108.0,0.04360146]
[1725622088432,0.4704,56114.0,56110.0,0.1053]
[1725622088661,0.178209,56114.0,56110.0,0.1053]
[1725622088873,0.178209,56114.0,56111.0,0.04715296]
[1725622089093,0.01,56112.0,56111.0,0.04358893]
[1725622089301,0.01,56112.0,56110.0,0.28352]
[1725622089534,0.01,56111.0,56110.0,0.28352]
[1725622089781,0.01,56111.0,56110.0,0.3828544]
[1725622090223,0.178209,56114.0,56110.0,0.3828544]
[1725622090469,0.01,56111.0,56110.0,0.28352]
[1725622090710,0.01,56111.0,56110.0,0.3828544]
[1725622091373,0.01,56111.0,56110.0,0.2046344]
[1725622091808,0.11,56115.0,56110.0,0.2046344]
[1725622092037,0.01,56113.0,56110.0,0.461738]
[1725622092244,0.01,56112.0,56110.0,0.1053]
[1725622092470,0.356392,56118.0,56110.0,0.28552]
[1725622092679,0.178208,56114.0,56110.0,0.28908387]
[1725622092899,0.178216,56112.0,56110.0,0.1073]
[1725622093129,0.17821,56114.0,56110.0,0.1053]
[1725622093413,0.534654,56111.0,56110.0,0.1053]
[1725622093679,0.55133997,56111.0,56110.0,0.002]
[1725622093929,0.534654,56111.0,56110.0,0.002]
[1725622094135,0.178222,56110.0,56106.0,0.281933]
[1725622094351,0.01668528,56109.0,56106.0,0.281933]
[1725622094579,0.178224,56109.0,56107.0,0.04360563]
[1725622095487,0.178221,56110.0,56107.0,0.04360563]
[1725622095725,0.01668485,56109.0,56107.0,0.04360563]
[1725622095974,0.178221,56110.0,56107.0,0.04360563]
[1725622096213,0.01668501,56109.0,56107.0,0.04360563]
[1725622096479,0.178218,56111.0,56107.0,0.22183563]
[1725622096721,0.19590611,56110.0,56107.0,0.04760563]
[1725622096945,0.01668511,56109.0,56107.0,0.04760563]
[1725622097185,0.01668511,56109.0,56107.0,0.04360563]
[1725622097640,0.001,56109.0,56107.0,0.04760563]
[1725622099768,0.001,56109.0,56107.0,0.22583563]
[1725622100007,0.001,56109.0,56107.0,0.04760563]
[1725622100249,0.179225,56109.0,56107.0,0.04760563]
[1725622100478,0.178227,56108.0,56107.0,0.04760563]
[1725622101166,0.19491218,56108.0,56107.0,0.04760563]
[1725622101413,0.19491218,56108.0,56107.0,0.04360563]
[1725622101948,0.178227,56108.0,56107.0,0.04360563]
[1725622102894,0.178224,56110.0,56107.0,0.22183563]
[1725622103126,0.356433,56112.0,56107.0,0.22483563]
[1725622103127,0.01768498,56108.0,56107.0,0.22483563]
[1725622103372,0.001,56108.0,56107.0,0.22483563]
[1725622103604,0.01768498,56108.0,56107.0,0.58129663]
[1725622104100,0.01668498,56108.0,56107.0,0.57829663]
[1725622104344,0.01668498,56108.0,56107.0,0.58129663]
[1725622104830,0.01668498,56108.0,56107.0,0.57829663]
[1725622105316,0.01668498,56108.0,56107.0,0.22183563]
[1725622106044,0.01750098,56108.0,56107.0,0.22183563]
[1725622106522,0.01850098,56108.0,56107.0,0.22483563]
[1725622107175,0.01850098,56108.0,56107.0,0.58129663]
[1725622108316,0.01850098,56108.0,56107.0,0.04660563]
[1725622108594,0.01850098,56108.0,56107.0,0.22483563]
[1725622109058,0.01850098,56108.0,56107.0,0.04660563]
[1725622109555,0.01850098,56108.0,56107.0,0.22483563]
[1725622110279,0.01850098,56108.0,56107.0,0.04660563]
[1725622113811,0.55318298,56108.0,56107.0,0.04660563]
[1725622114423,0.19672798,56108.0,56107.0,0.04660563]
[1725622114663,0.90963798,56108.0,56107.0,0.04660563]
[1725622114876,0.19672798,56108.0,56107.0,0.04660563]
[1725622115109,0.55318298,56108.0,56107.0,0.003]
[1725622115798,0.536498,56108.0,56107.0,0.04660563]
[1725622116025,0.55318042,56108.0,56107.0,0.003]
[1725622116250,0.536498,56108.0,56107.0,0.04660563]
[1725622116488,0.55318035,56108.0,56107.0,0.003]
[1725622116713,0.19672535,56108.0,56107.0,0.04660563]
[1725622117428,0.01849835,56108.0,56107.0,0.15470563]
[1725622117681,0.01849835,56108.0,56107.0,0.33293563]
[1725622117900,0.01849835,56108.0,56107.0,0.15470563]
[1725622118623,0.01849835,56108.0,56107.0,0.33293563]
[1725622118859,0.01849835,56108.0,56107.0,0.15470563]
[1725622119583,0.01849835,56108.0,56107.0,0.15633763]
[1725622120327,0.01849835,56108.0,56107.0,0.04823763]
[1725622120557,0.07160189,56108.0,56107.0,0.04823763]
[1725622121042,0.07160189,56108.0,56107.0,0.22646763]
[1725622121279,0.01849835,56108.0,56107.0,1.03387049]
[1725622121527,0.01849835,56108.0,56107.0,0.76690949]
[1725622122230,0.01849835,56108.0,56107.0,1.12337049]
[1725622122449,0.001816,56108.0,56107.0,1.12337049]
[1725622122673,0.01850048,56108.0,56107.0,1.12337049]
[1725622123109,0.018286,56108.0,56107.0,1.12337049]
[1725622126366,0.018286,56108.0,56107.0,1.47983149]
[1725622126840,0.018286,56108.0,56107.0,2.3700422]
[1725622127125,0.018286,56108.0,56107.0,2.0135812]
[1725622127368,0.00160152,56108.0,56107.0,2.0135812]
[1725622128093,0.00060152,56108.0,56107.0,1.90343317]
[1725622128570,0.00160152,56108.0,56107.0,1.91343317]
[1725622128815,0.00160152,56108.0,56107.0,1.91543317]
[1725622129040,0.00060152,56108.0,56107.0,1.90343317]
[1725622129256,0.00160152,56108.0,56107.0,1.91543317]
[1725622129683,0.00160152,56108.0,56107.0,1.79224245]
[1725622129893,0.00160152,56108.0,56107.0,1.91543317]
[1725622130108,0.00160152,56108.0,56107.0,1.79224245]
[1725622131227,0.00160152,56108.0,56107.0,1.60673149]
[1725622131457,0.00160152,56108.0,56107.0,1.24027049]
[1725622131684,0.01828591,56108.0,56107.0,1.24027049]
[1725622132369,0.00160152,56108.0,56107.0,1.24027049]
[1725622133268,0.0182874,56108.0,56107.0,1.24027049]
[1725622133705,0.40967429,56118.0,56109.0,0.356444]
[1725622133944,0.178204,56116.0,56112.0,0.178212]
[1725622134166,0.178205,56115.0,56110.0,0.04359311]
[1725622134384,0.178205,56115.0,56113.0,0.04358059]
[1725622134603,0.178205,56115.0,56111.0,0.178215]
[1725622134838,0.4445,56117.0,56110.0,0.17822]
[1725622135068,0.4445,56117.0,56112.0,0.04358476]
[1725622135069,0.178205,56115.0,56112.0,0.04358476]
[1725622135295,0.178205,56115.0,56111.0,0.22180493]
[1725622135546,0.178202,56116.0,56113.0,0.04358059]
[1725622135769,0.001,56115.0,56113.0,0.013]
[1725622135987,0.05427729,56115.0,56114.0,0.04357641]
[1725622136214,0.001,56115.0,56114.0,0.04357641]
[1725622136867,0.23147929,56116.0,56114.0,0.04357641]
[1725622137097,0.05327729,56116.0,56114.0,0.04357641]
[1725622137312,0.05327729,56116.0,56112.0,0.356426]
[1725622137568,0.05327729,56116.0,56115.0,0.04357224]
[1725622137796,0.05327729,56116.0,56113.0,0.178211]
[1725622138022,0.05327729,56116.0,56115.0,0.04357224]
[1725622138244,0.23148029,56116.0,56114.0,0.04357641]
[1725622138457,0.23148029,56116.0,56110.0,0.356436]
[1725622138458,0.179205,56115.0,56111.0,0.190217]
[1725622138693,0.179207,56115.0,56111.0,0.190217]
[1725622138924,0.178207,56115.0,56111.0,0.178217]
[1725622139153,0.05427729,56116.0,56113.0,0.18921]
[1725622139643,0.05327729,56116.0,56113.0,0.17821]
[1725622139880,0.05327729,56116.0,56114.0,0.04357641]
[1725622140083,0.001,56115.0,56114.0,0.04357641]
[1725622141501,0.178199,56117.0,56109.0,0.178222]
[1725622141743,0.179202,56116.0,56114.0,0.04357641]
[1725622141987,0.179202,56116.0,56113.0,0.011]
[1725622142234,0.179202,56116.0,56115.0,0.04357224]
[1725622142461,0.178202,56116.0,56114.0,0.04357641]
[1725622142685,0.001,56115.0,56114.0,0.012]
[1725622143166,0.001,56115.0,56107.0,0.553488]
[1725622143167,0.178195,56118.0,56111.0,0.18177979]
[1725622143420,0.178196,56118.0,56111.0,0.18177879]
[1725622143662,0.001,56116.0,56115.0,0.011]
[1725622143916,0.001,56116.0,56115.0,0.383205]
[1725622144193,0.001,56116.0,56115.0,0.06397554]
[1725622144194,1.278912,56116.0,56115.0,0.06397554]
[1725622144447,1.278912,56116.0,56107.0,0.001632]
[1725622144448,1.089837,56108.0,56107.0,0.001632]
[1725622144689,1.446292,56108.0,56107.0,0.001632]
[1725622144950,1.546292,56108.0,56107.0,0.001632]
[1725622145457,1.29634617,56108.0,56107.0,0.001632]
[1725622145938,1.189837,56108.0,56107.0,0.001632]
[1725622146164,1.191837,56108.0,56107.0,0.001632]
[1725622146656,0.835382,56108.0,56107.0,0.001632]
[1725622146902,0.91324786,56108.0,56107.0,0.001632]
[1725622147145,0.91303335,56108.0,56107.0,0.001632]
[1725622147926,0.83316749,56108.0,56107.0,0.001632]
[1725622148401,0.83416749,56108.0,56107.0,0.001632]
[1725622148887,0.80052716,56108.0,56107.0,0.001632]
[1725622149148,0.72166749,56108.0,56107.0,0.001632]
[1725622149580,0.72066749,56108.0,56107.0,0.001632]
[1725622149845,0.72166749,56108.0,56107.0,0.001632]
[1725622150071,0.7749003,56108.0,56107.0,0.001632]
[1725622150815,0.6887003,56108.0,56107.0,0.001632]
[1725622151047,0.63546749,56108.0,56107.0,0.001632]
[1725622152013,0.68869499,56108.0,56107.0,0.001632]
[1725622152283,0.63546749,56108.0,56107.0,0.001632]
[1725622152507,0.68769267,56108.0,56107.0,0.001632]
[1725622152985,0.63446749,56108.0,56107.0,0.001632]
[1725622153212,0.68769538,56108.0,56107.0,0.001632]
[1725622153675,0.63446749,56108.0,56107.0,0.001632]
[1725622154169,0.68769538,56108.0,56107.0,0.001632]
[1725622154398,0.33145329,56108.0,56107.0,0.001632]
[1725622154647,0.278227,56108.0,56107.0,0.001632]
[1725622155116,0.278227,56108.0,56107.0,0.04523763]
[1725622155253,0.278227,56108.0,56107.0,0.001632]
[1725622155660,0.278227,56108.0,56107.0,0.003632]
[1725622155938,0.1,56108.0,56107.0,0.04723763]
[1725622156141,0.178224,56109.0,56107.0,0.001632]
[1725622156258,0.178224,56109.0,56107.0,0.04523763]
[1725622156488,0.178227,56108.0,56107.0,0.005632]
[1725622157178,0.178227,56108.0,56107.0,0.001632]
[1725622157621,0.178227,56108.0,56107.0,0.04523763]
[1725622158542,0.178227,56108.0,56107.0,0.04823763]
[1725622159005,0.178227,56108.0,56107.0,0.04523763]
[1725622159229,0.178227,56108.0,56107.0,0.04923763]
[1725622159677,0.534682,56108.0,56107.0,0.04923763]
[1725622161961,0.534682,56108.0,56107.0,0.005632]
[1725622162405,0.534682,56108.0,56107.0,0.04923763]
[1725622162637,0.534682,56108.0,56107.0,0.005632]
[1725622163583,0.534682,56108.0,56107.0,0.04923763]
[1725622164454,0.891137,56108.0,56107.0,0.005632]
[1725622165128,0.94567538,56108.0,56107.0,0.005632]
[1725622166021,0.76744838,56108.0,56107.0,0.005632]
[1725622166253,0.94567352,56108.0,56107.0,0.005632]
[1725622166938,0.891137,56108.0,56107.0,0.005632]
[1725622170306,0.534682,56108.0,56107.0,0.005632]
[1725622170756,0.178227,56108.0,56107.0,0.005632]
[1725622170981,0.534682,56108.0,56107.0,0.005632]
[1725622171206,0.534682,56108.0,56107.0,0.04923763]
[1725622171635,0.178224,56109.0,56107.0,0.200532]
[1725622171862,0.178224,56109.0,56108.0,0.04360146]
[1725622172307,0.05319858,56111.0,56108.0,0.04360146]
[1725622172532,0.534673,56109.0,56108.0,0.04360146]
[1725622172758,0.178227,56108.0,56107.0,0.196532]
[1725622172993,0.178227,56108.0,56107.0,0.199532]
[1725622173215,0.178225,56109.0,56107.0,0.199532]
[1725622173869,0.178225,56109.0,56107.0,0.196532]
[1725622174065,0.178227,56108.0,56107.0,0.196532]
[1725622174671,0.178225,56109.0,56107.0,0.196532]
[1725622175325,0.178227,56108.0,56107.0,0.196532]
[1725622175543,0.178227,56108.0,56107.0,0.001632]
[1725622175544,0.891137,56108.0,56107.0,0.001632]
[1725622175759,0.76569388,56108.0,56107.0,0.001632]
[1725622175991,1.12214888,56108.0,56107.0,0.001632]
[1725622176197,1.20194675,56108.0,56107.0,0.001632]
[1725622176624,1.20194675,56108.0,56107.0,0.005632]
[1725622177490,1.2019955,56108.0,56107.0,0.005632]
[1725622177693,1.56570388,56108.0,56107.0,0.005632]
[1725622177906,1.20924888,56108.0,56107.0,0.005632]
[1725622178109,1.56570388,56108.0,56107.0,0.005632]
[1725622178322,1.56651988,56108.0,56107.0,0.005632]
[1725622179148,1.21006488,56108.0,56107.0,0.005632]
[1725622179560,1.56651988,56108.0,56107.0,0.005632]
[1725622180508,1.67298204,56108.0,56107.0,0.005632]
[1725622182530,1.67303366,56108.0,56107.0,0.005632]
[1725622182755,1.31657866,56108.0,56107.0,0.005632]
[1725622183436,1.08556678,56108.0,56107.0,0.005632]
[1725622183666,1.44202178,56108.0,56107.0,0.005632]
[1725622183867,1.08556678,56108.0,56107.0,0.005632]
[1725622184330,0.979053,56108.0,56107.0,0.005632]
[1725622185926,0.99064103,56108.0,56107.0,0.005632]
[1725622186699,1.12378326,56108.0,56107.0,0.005632]
[1725622187332,1.48023826,56108.0,56107.0,0.005632]
[1725622187479,1.48031951,56108.0,56107.0,0.005632]
[1725622188134,1.12386451,56108.0,56107.0,0.005632]
[1725622188342,0.99064103,56108.0,56107.0,0.005632]
[1725622189022,1.34709603,56108.0,56107.0,0.005632]
[1725622194106,1.40102039,56108.0,56107.0,0.005632]
[1725622194329,1.34709603,56108.0,56107.0,0.005632]
[1725622195000,0.81241403,56108.0,56107.0,0.005632]
[1725622195239,1.02529786,56108.0,56107.0,0.005632]
[1725622195505,0.99862813,56108.0,56107.0,0.005632]
[1725622195944,1.248408,56108.0,56107.0,0.005632]
[1725622196386,1.38174516,56108.0,56107.0,0.005632]
[1725622197320,1.248408,56108.0,56107.0,0.005632]
[1725622200256,0.891953,56108.0,56107.0,0.005632]
[1725622200485,0.08082168,56108.0,56107.0,0.0763869]
[1725622200765,0.000816,56108.0,56107.0,0.733423]
[1725622201013,0.000816,56108.0,56107.0,1.1626389]
[1725622201496,0.000816,56108.0,56107.0,1.1606389]
[1725622201975,0.000816,56108.0,56107.0,1.1566389]
[1725622202222,0.001816,56108.0,56107.0,1.1606389]
[1725622202445,0.001816,56108.0,56107.0,0.8041779]
[1725622202898,0.001816,56108.0,56107.0,1.1606389]
[1725622203117,0.001816,56108.0,56107.0,1.35814986]
[1725622203350,0.001816,56108.0,56107.0,1.94562619]
[1725622203578,0.000816,56118.0,56107.0,1.94562619]
[1725622203579,0.000816,56118.0,56117.0,1.249393]
[1725622203807,0.000816,56118.0,56117.0,1.94926456]
[1725622204052,0.000816,56118.0,56117.0,1.94726456]
[1725622204780,0.000816,56118.0,56117.0,1.59086656]
[1725622205000,0.001816,56118.0,56117.0,1.60186656]
[1725622205236,0.001816,56118.0,56117.0,1.95826456]
[1725622205686,0.001816,56118.0,56117.0,1.96026456]
[1725622205912,0.000816,56118.0,56117.0,1.95926456]
[1725622206122,0.000816,56118.0,56117.0,2.41566256]
[1725622206787,0.000816,56118.0,56117.0,2.05926456]
[1725622207222,0.001816,56118.0,56117.0,2.06926456]
[1725622207695,0.000816,56118.0,56117.0,2.05926456]
[1725622207974,0.000816,56118.0,56117.0,1.33985123]
[1725622208199,0.001816,56118.0,56117.0,1.34985123]
[1725622208861,0.001816,56118.0,56117.0,1.45883123]
[1725622209067,0.001816,56118.0,56117.0,1.43883123]
[1725622209315,0.001816,56118.0,56117.0,0.30148]
[1725622209530,0.001816,56118.0,56117.0,0.83964051]
[1725622209750,0.001816,56118.0,56117.0,1.26294924]
[1725622209965,0.001816,56118.0,56117.0,0.90655124]
[1725622210186,0.001816,56118.0,56117.0,0.55015324]
[1725622210397,0.000816,56118.0,56117.0,0.36195424]
[1725622210633,0.001816,56118.0,56117.0,0.36995424]
[1725622211522,0.536402,56118.0,56117.0,0.36995424]
[1725622211734,0.180011,56118.0,56117.0,0.29948]
[1725622212199,0.001816,56118.0,56117.0,0.29948]
[1725622214296,0.892793,56118.0,56117.0,0.09698]
[1725622214768,0.536402,56118.0,56117.0,0.09698]
[1725622214993,0.001816,56118.0,56117.0,0.09698]